[Event "November 21 Late 2023"]
[Site "https://www.chess.com"]
[Date "2023.11.21"]
[Round "9"]
[White "Qiao, Cindy"]
[Black "AndresDelgado77"]
[Result "1-0"]
[Board "110"]
[TimeControl "180+1"]
[WhiteFideId "2620243"]
[WhiteElo "1862"]
[BlackElo "2276"]
[WhiteTeam "CAN"]
[WhiteClock "0:00:14"]
[BlackClock "0:00:00"]

1. e4 {[%clk 0:03:00]}  e6 {[%clk 0:02:59]} 2. d4 {[%clk 0:03:00]}  d5 {[%clk 0:02:59]} 3. exd5 {[%clk 0:03:00]}  exd5 {[%clk 0:02:58]} 4. Bf4 {[%clk 0:03:01]}  c6 {[%clk 0:02:50]} 5. Nf3 {[%clk 0:03:00]}  Qb6 {[%clk 0:02:46]} 6. Qc1 {[%clk 0:03:00]}  Bg4 {[%clk 0:02:44]} 7. Nbd2 {[%clk 0:02:59]}  Nd7 {[%clk 0:02:30]} 8. c3 {[%clk 0:02:59]}  O-O-O {[%clk 0:02:29]} 9. Bd3 {[%clk 0:02:55]}  Re8+ {[%clk 0:02:29]} 10. Be3 {[%clk 0:02:56]}  f5 {[%clk 0:02:21]} 11. O-O {[%clk 0:02:55]}  Ngf6 {[%clk 0:02:15]} 12. Bf4 {[%clk 0:02:50]}  Ne4 {[%clk 0:02:12]} 13. a4 {[%clk 0:02:47]}  Ndf6 {[%clk 0:02:03]} 14. b4 {[%clk 0:02:46]}  Bd6 {[%clk 0:02:00]} 15. Ne5 {[%clk 0:02:44]}  Nh5 {[%clk 0:01:52]} 16. a5 {[%clk 0:02:19]}  Qc7 {[%clk 0:01:49]} 17. Bg3 {[%clk 0:02:09]}  f4 {[%clk 0:01:11]} 18. Nxg4 {[%clk 0:01:54]}  fxg3 {[%clk 0:01:08]} 19. hxg3 {[%clk 0:01:53]}  Qd7 {[%clk 0:00:55]} 20. Nh2 {[%clk 0:01:38]}  Rhf8 {[%clk 0:00:48]} 21. Nhf3 {[%clk 0:01:35]}  g5 {[%clk 0:00:41]} 22. Bxe4 {[%clk 0:01:29]}  dxe4 {[%clk 0:00:39]} 23. Nxg5 {[%clk 0:01:29]}  e3 {[%clk 0:00:39]} 24. fxe3 {[%clk 0:01:23]}  Qg4 {[%clk 0:00:28]} 25. Ndf3 {[%clk 0:00:51]}  Nxg3 {[%clk 0:00:26]} 26. Re1 {[%clk 0:00:42]}  h6 {[%clk 0:00:25]} 27. a6 {[%clk 0:00:28]}  b6 {[%clk 0:00:17]} 28. e4 {[%clk 0:00:19]}  hxg5 {[%clk 0:00:14]} 29. Qxg5 {[%clk 0:00:20]}  Qxg5 {[%clk 0:00:11]} 30. Nxg5 {[%clk 0:00:21]}  Bf4 {[%clk 0:00:11]} 31. Nf3 {[%clk 0:00:20]}  Nxe4 {[%clk 0:00:08]} 32. c4 {[%clk 0:00:18]}  Bg3 {[%clk 0:00:07]} 33. Red1 {[%clk 0:00:16]}  Bf2+ {[%clk 0:00:05]} 34. Kf1 {[%clk 0:00:16]}  Be3 {[%clk 0:00:05]} 35. d5 {[%clk 0:00:15]}  Ng3+ {[%clk 0:00:04]} 36. Ke1 {[%clk 0:00:14]}  Bd4+ {[%clk 0:00:04]} 37. Kd2 {[%clk 0:00:14]}  Bxa1 {[%clk 0:00:03]} 38. Rxa1 {[%clk 0:00:15]}  Re2+ {[%clk 0:00:03]} 39. Kd3 {[%clk 0:00:15]}  Rxg2 {[%clk 0:00:04]} 40. Ne5 {[%clk 0:00:14]}  Re8 {[%clk 0:00:03]} 41. Re1 {[%clk 0:00:13]}  Re2 {[%clk 0:00:02]} 42. Rxe2 {[%clk 0:00:13]}  Nxe2 {[%clk 0:00:03]} 43. Nxc6 {[%clk 0:00:13]}  Nf4+ {[%clk 0:00:03]} 44. Kd4 {[%clk 0:00:13]}  Rf8 {[%clk 0:00:03]} 45. Nxa7+ {[%clk 0:00:14]}  Kb8 {[%clk 0:00:00]} 46. Nc6+ {[%clk 0:00:14]} 1-0

[Event "November 21 Late 2023"]
[Site "https://www.chess.com"]
[Date "2023.11.21"]
[Round "10"]
[White "Nihal Sarin"]
[Black "Bortnyk, Olexandr"]
[Result "0-1"]
[Board "4"]
[TimeControl "180+1"]
[WhiteFideId "25092340"]
[BlackFideId "14120828"]
[WhiteElo "2689"]
[BlackElo "2725"]
[WhiteTeam "IND"]
[BlackTeam "UKR"]
[WhiteClock "0:00:03"]
[BlackClock "0:00:02"]

1. Nf3 {[%clk 0:02:50]}  Nf6 {[%clk 0:02:57]} 2. b3 {[%clk 0:02:51]}  g6 {[%clk 0:02:56]} 3. Bb2 {[%clk 0:02:51]}  Bg7 {[%clk 0:02:57]} 4. e3 {[%clk 0:02:52]}  O-O {[%clk 0:02:57]} 5. d4 {[%clk 0:02:53]}  d5 {[%clk 0:02:57]} 6. c4 {[%clk 0:02:52]}  c6 {[%clk 0:02:53]} 7. Nc3 {[%clk 0:02:52]}  Bf5 {[%clk 0:02:53]} 8. h3 {[%clk 0:02:52]}  Ne4 {[%clk 0:02:53]} 9. Be2 {[%clk 0:02:52]}  Nxc3 {[%clk 0:02:48]} 10. Bxc3 {[%clk 0:02:52]}  Nd7 {[%clk 0:02:48]} 11. O-O {[%clk 0:02:53]}  Nf6 {[%clk 0:02:48]} 12. Rc1 {[%clk 0:02:54]}  Ne4 {[%clk 0:02:47]} 13. Bb2 {[%clk 0:02:54]}  a6 {[%clk 0:02:48]} 14. a3 {[%clk 0:02:54]}  Rc8 {[%clk 0:02:42]} 15. Ne5 {[%clk 0:02:54]}  Bxe5 {[%clk 0:02:38]} 16. dxe5 {[%clk 0:02:55]}  dxc4 {[%clk 0:02:39]} 17. Bxc4 {[%clk 0:02:52]}  Nd2 {[%clk 0:02:33]} 18. e6 {[%clk 0:02:51]}  fxe6 {[%clk 0:02:04]} 19. Qe2 {[%clk 0:02:51]}  Nxf1 {[%clk 0:01:52]} 20. Qxf1 {[%clk 0:02:33]}  b5 {[%clk 0:01:41]} 21. Be2 {[%clk 0:02:33]}  Qd5 {[%clk 0:01:37]} 22. b4 {[%clk 0:02:21]}  Rfd8 {[%clk 0:01:34]} 23. Bd4 {[%clk 0:02:20]}  e5 {[%clk 0:01:32]} 24. Rc5 {[%clk 0:02:17]}  exd4 {[%clk 0:01:21]} 25. Rxd5 {[%clk 0:02:17]}  Rxd5 {[%clk 0:01:22]} 26. Bf3 {[%clk 0:02:09]}  d3 {[%clk 0:01:06]} 27. e4 {[%clk 0:02:09]}  Bxe4 {[%clk 0:01:06]} 28. Bxe4 {[%clk 0:02:09]}  d2 {[%clk 0:01:06]} 29. Qd1 {[%clk 0:02:05]}  Rd4 {[%clk 0:01:00]} 30. Bf3 {[%clk 0:02:01]}  Rcd8 {[%clk 0:00:56]} 31. Qb3+ {[%clk 0:02:01]}  Kf8 {[%clk 0:00:55]} 32. Bd1 {[%clk 0:01:59]}  R8d6 {[%clk 0:00:51]} 33. Qf3+ {[%clk 0:01:51]}  Kg7 {[%clk 0:00:49]} 34. Qc3 {[%clk 0:01:49]}  h5 {[%clk 0:00:48]} 35. Kh2 {[%clk 0:01:47]}  Kf8 {[%clk 0:00:46]} 36. Qf3+ {[%clk 0:01:37]}  Ke8 {[%clk 0:00:47]} 37. Qe3 {[%clk 0:01:17]}  Rd3 {[%clk 0:00:41]} 38. Qe5 {[%clk 0:01:04]}  R3d4 {[%clk 0:00:31]} 39. Qh8+ {[%clk 0:01:02]}  Kd7 {[%clk 0:00:30]} 40. g4 {[%clk 0:00:45]}  hxg4 {[%clk 0:00:30]} 41. hxg4 {[%clk 0:00:46]}  Re4 {[%clk 0:00:23]} 42. g5 {[%clk 0:00:45]}  Kc7 {[%clk 0:00:20]} 43. Qa8 {[%clk 0:00:38]}  Kd7 {[%clk 0:00:13]} 44. Qxa6 {[%clk 0:00:35]}  Re1 {[%clk 0:00:11]} 45. Qb7+ {[%clk 0:00:32]}  Ke6 {[%clk 0:00:07]} 46. Bg4+ {[%clk 0:00:27]}  Kd5 {[%clk 0:00:06]} 47. a4 {[%clk 0:00:19]}  bxa4 {[%clk 0:00:05]} 48. b5 {[%clk 0:00:20]}  d1=Q {[%clk 0:00:02]} 49. Bxd1 {[%clk 0:00:20]}  Rxd1 {[%clk 0:00:03]} 50. b6 {[%clk 0:00:05]}  Rb1 {[%clk 0:00:03]} 51. Qa7 {[%clk 0:00:04]}  c5 {[%clk 0:00:02]} 52. Qa8+ {[%clk 0:00:04]}  Kd4 {[%clk 0:00:01]} 53. Qxa4+ {[%clk 0:00:04]}  c4 {[%clk 0:00:01]} 54. b7 {[%clk 0:00:04]}  Rdb6 {[%clk 0:00:01]} 55. Qa7 {[%clk 0:00:03]}  Kd5 {[%clk 0:00:01]} 56. Qa5+ {[%clk 0:00:04]}  R1b5 {[%clk 0:00:01]} 57. Qd2+ {[%clk 0:00:02]}  Kc6 {[%clk 0:00:02]} 58. Qe3 {[%clk 0:00:03]}  Kxb7 {[%clk 0:00:02]} 59. Qxe7+ {[%clk 0:00:03]}  Ka6 {[%clk 0:00:03]} 60. Qa3+ {[%clk 0:00:03]}  Ra5 {[%clk 0:00:03]} 61. Qc3 {[%clk 0:00:03]}  Rc6 {[%clk 0:00:03]} 62. f4 {[%clk 0:00:02]}  Rb5 {[%clk 0:00:03]} 63. Qa3+ {[%clk 0:00:02]}  Kb7 {[%clk 0:00:04]} 64. Qe7+ {[%clk 0:00:02]}  Kb6 {[%clk 0:00:04]} 65. Qe3+ {[%clk 0:00:03]}  Ka6 {[%clk 0:00:05]} 66. Qa3+ {[%clk 0:00:03]}  Ra5 {[%clk 0:00:05]} 67. Qc3 {[%clk 0:00:03]}  Ra2+ {[%clk 0:00:05]} 68. Kg3 {[%clk 0:00:03]}  Ra4 {[%clk 0:00:05]} 69. Kg4 {[%clk 0:00:03]}  Ra5 {[%clk 0:00:05]} 70. Kh4 {[%clk 0:00:02]}  Rd5 {[%clk 0:00:05]} 71. Qa3+ {[%clk 0:00:02]}  Kb5 {[%clk 0:00:05]} 72. Qb2+ {[%clk 0:00:02]}  Kc5 {[%clk 0:00:06]} 73. Qa3+ {[%clk 0:00:03]}  Kd4 {[%clk 0:00:05]} 74. Qb2+ {[%clk 0:00:03]}  c3 {[%clk 0:00:05]} 75. Qb4+ {[%clk 0:00:01]}  Kd3 {[%clk 0:00:04]} 76. Qa4 {[%clk 0:00:01]}  Rdc5 {[%clk 0:00:04]} 77. Qd1+ {[%clk 0:00:02]}  Kc4 {[%clk 0:00:05]} 78. Qc2 {[%clk 0:00:02]}  Kb4 {[%clk 0:00:02]} 79. Kg4 {[%clk 0:00:03]}  Kb5 {[%clk 0:00:01]} 80. Qb3+ {[%clk 0:00:03]}  Ka6 {[%clk 0:00:02]} 81. Qc2 {[%clk 0:00:04]}  Kb6 {[%clk 0:00:03]} 82. Qb3+ {[%clk 0:00:04]}  Rb5 {[%clk 0:00:03]} 83. Qc2 {[%clk 0:00:05]}  Rb2 {[%clk 0:00:03]} 84. Qc1 {[%clk 0:00:05]}  Kc7 {[%clk 0:00:03]} 85. f5 {[%clk 0:00:04]}  gxf5+ {[%clk 0:00:04]} 86. Kxf5 {[%clk 0:00:04]}  Rb5+ {[%clk 0:00:05]} 87. Kg4 {[%clk 0:00:04]}  c2 {[%clk 0:00:05]} 88. Qf4+ {[%clk 0:00:04]}  Kb7 {[%clk 0:00:05]} 89. Qf7+ {[%clk 0:00:04]}  Ka6 {[%clk 0:00:05]} 90. Qa2+ {[%clk 0:00:04]}  Kb6 {[%clk 0:00:05]} 91. Qa8 {[%clk 0:00:02]}  c1=Q {[%clk 0:00:04]} 92. Qb8+ {[%clk 0:00:03]}  Ka5 {[%clk 0:00:04]} 93. Qa7+ {[%clk 0:00:03]}  Kb4 {[%clk 0:00:04]} 94. Qe7+ {[%clk 0:00:03]}  Rcc5 {[%clk 0:00:02]} 0-1

[Event "November 21 Late 2023"]
[Site "https://www.chess.com"]
[Date "2023.11.21"]
[Round "10"]
[White "Deac, Bogdan-Daniel"]
[Black "Sjugirov, Sanan"]
[Result "1-0"]
[Board "6"]
[TimeControl "180+1"]
[WhiteFideId "1226380"]
[BlackFideId "4189302"]
[WhiteElo "2641"]
[BlackElo "2569"]
[WhiteTeam "ROU"]
[BlackTeam "HUN"]
[WhiteClock "0:00:23"]
[BlackClock "0:00:00"]

1. d4 {[%clk 0:03:00]}  Nf6 {[%clk 0:02:59]} 2. c4 {[%clk 0:03:01]}  e6 {[%clk 0:03:00]} 3. Nf3 {[%clk 0:03:01]}  d5 {[%clk 0:02:59]} 4. g3 {[%clk 0:03:02]}  Bb4+ {[%clk 0:02:59]} 5. Nc3 {[%clk 0:03:02]}  O-O {[%clk 0:02:55]} 6. Bg2 {[%clk 0:03:02]}  dxc4 {[%clk 0:02:51]} 7. O-O {[%clk 0:03:02]}  Nc6 {[%clk 0:02:50]} 8. Qa4 {[%clk 0:03:02]}  Nd5 {[%clk 0:02:41]} 9. Qc2 {[%clk 0:03:02]}  Be7 {[%clk 0:02:36]} 10. Rd1 {[%clk 0:03:02]}  Rb8 {[%clk 0:02:35]} 11. e4 {[%clk 0:02:47]}  Ncb4 {[%clk 0:02:29]} 12. Qd2 {[%clk 0:02:45]}  Nxc3 {[%clk 0:02:29]} 13. Qxc3 {[%clk 0:02:45]}  b5 {[%clk 0:02:27]} 14. b3 {[%clk 0:02:45]}  Bb7 {[%clk 0:02:21]} 15. Ne1 {[%clk 0:02:43]}  c5 {[%clk 0:02:03]} 16. Be3 {[%clk 0:02:35]}  Qc8 {[%clk 0:01:00]} 17. bxc4 {[%clk 0:02:09]}  cxd4 {[%clk 0:00:53]} 18. Bxd4 {[%clk 0:02:00]}  Qxc4 {[%clk 0:00:52]} 19. Bxg7 {[%clk 0:01:47]}  Qxc3 {[%clk 0:00:52]} 20. Bxc3 {[%clk 0:01:48]}  Rfd8 {[%clk 0:00:49]} 21. Rdb1 {[%clk 0:01:36]}  a5 {[%clk 0:00:35]} 22. a3 {[%clk 0:01:31]}  Rbc8 {[%clk 0:00:35]} 23. axb4 {[%clk 0:01:20]}  Rxc3 {[%clk 0:00:35]} 24. bxa5 {[%clk 0:01:20]}  b4 {[%clk 0:00:28]} 25. a6 {[%clk 0:01:09]}  Ba8 {[%clk 0:00:28]} 26. e5 {[%clk 0:01:09]}  Bxg2 {[%clk 0:00:21]} 27. Kxg2 {[%clk 0:01:10]}  Ra8 {[%clk 0:00:20]} 28. Ra5 {[%clk 0:01:08]}  Ra3 {[%clk 0:00:09]} 29. Ra1 {[%clk 0:01:04]}  Kf8 {[%clk 0:00:04]} 30. R1xa3 {[%clk 0:00:56]}  bxa3 {[%clk 0:00:05]} 31. Nc2 {[%clk 0:00:56]}  Ke8 {[%clk 0:00:04]} 32. Nxa3 {[%clk 0:00:55]}  Kd7 {[%clk 0:00:04]} 33. Nc4 {[%clk 0:00:39]}  Kc6 {[%clk 0:00:05]} 34. f4 {[%clk 0:00:39]}  Bb4 {[%clk 0:00:05]} 35. Ra2 {[%clk 0:00:35]}  Kc5 {[%clk 0:00:04]} 36. Nd6 {[%clk 0:00:33]}  f5 {[%clk 0:00:03]} 37. Nf7 {[%clk 0:00:28]}  Kd5 {[%clk 0:00:00]} 38. Kh3 {[%clk 0:00:23]} 1-0

[Event "November 21 Late 2023"]
[Site "https://www.chess.com"]
[Date "2023.11.21"]
[Round "10"]
[White "Ibarra Jerez, Jose Carlos"]
[Black "Xu, Yi"]
[Result "1-0"]
[Board "8"]
[TimeControl "180+1"]
[WhiteFideId "2226332"]
[BlackFideId "8605564"]
[WhiteElo "2634"]
[BlackElo "2460"]
[WhiteTeam "ESP"]
[BlackTeam "CHN"]
[WhiteClock "0:00:03"]
[BlackClock "0:00:00"]

1. e4 {[%clk 0:03:00]}  e5 {[%clk 0:02:58]} 2. Nf3 {[%clk 0:03:01]}  Nf6 {[%clk 0:02:59]} 3. Nc3 {[%clk 0:02:59]}  Nc6 {[%clk 0:02:59]} 4. h3 {[%clk 0:02:59]}  d5 {[%clk 0:02:52]} 5. exd5 {[%clk 0:02:59]}  Nxd5 {[%clk 0:02:52]} 6. Bb5 {[%clk 0:02:59]}  Nxc3 {[%clk 0:02:50]} 7. bxc3 {[%clk 0:03:00]}  Bd6 {[%clk 0:02:49]} 8. O-O {[%clk 0:03:00]}  O-O {[%clk 0:02:49]} 9. d4 {[%clk 0:03:01]}  exd4 {[%clk 0:02:47]} 10. cxd4 {[%clk 0:03:01]}  h6 {[%clk 0:02:46]} 11. Bb2 {[%clk 0:02:57]}  a6 {[%clk 0:02:34]} 12. Be2 {[%clk 0:02:42]}  Ne7 {[%clk 0:02:15]} 13. c4 {[%clk 0:02:39]}  c5 {[%clk 0:02:12]} 14. d5 {[%clk 0:02:04]}  b5 {[%clk 0:02:12]} 15. Qc2 {[%clk 0:01:59]}  bxc4 {[%clk 0:01:26]} 16. Bxc4 {[%clk 0:01:57]}  Ng6 {[%clk 0:01:08]} 17. Qc3 {[%clk 0:01:44]}  f6 {[%clk 0:01:07]} 18. Rfe1 {[%clk 0:01:39]}  Bf5 {[%clk 0:00:58]} 19. Re3 {[%clk 0:01:07]}  Ne5 {[%clk 0:00:56]} 20. Nxe5 {[%clk 0:00:54]}  Bxe5 {[%clk 0:00:56]} 21. d6+ {[%clk 0:00:47]}  Kh7 {[%clk 0:00:51]} 22. Rxe5 {[%clk 0:00:48]}  fxe5 {[%clk 0:00:50]} 23. Rd1 {[%clk 0:00:39]}  Qd7 {[%clk 0:00:47]} 24. Qxe5 {[%clk 0:00:28]}  Rae8 {[%clk 0:00:46]} 25. Qxc5 {[%clk 0:00:27]}  Be4 {[%clk 0:00:28]} 26. Qc7 {[%clk 0:00:22]}  Rd8 {[%clk 0:00:07]} 27. Rd4 {[%clk 0:00:20]}  Qf5 {[%clk 0:00:01]} 28. Rd2 {[%clk 0:00:09]}  Rd7 {[%clk 0:00:02]} 29. Qb6 {[%clk 0:00:09]}  Qg6 {[%clk 0:00:01]} 30. Bf1 {[%clk 0:00:06]}  Rf5 {[%clk 0:00:01]} 31. Qd4 {[%clk 0:00:05]}  Rg5 {[%clk 0:00:01]} 32. f4 {[%clk 0:00:04]}  Rg3 {[%clk 0:00:00]} 33. Kh2 {[%clk 0:00:03]} 1-0

[Event "November 21 Late 2023"]
[Site "https://www.chess.com"]
[Date "2023.11.21"]
[Round "10"]
[White "Sarana, Alexey"]
[Black "Ghasi, Ameet K"]
[Result "0-1"]
[Board "12"]
[TimeControl "180+1"]
[WhiteFideId "24133795"]
[BlackFideId "409200"]
[WhiteElo "2707"]
[BlackElo "2558"]
[WhiteTeam "SRB"]
[BlackTeam "ENG"]
[WhiteClock "0:00:09"]
[BlackClock "0:00:14"]

1. c4 {[%clk 0:03:00]}  g6 {[%clk 0:02:59]} 2. e4 {[%clk 0:03:00]}  Bg7 {[%clk 0:03:00]} 3. Nf3 {[%clk 0:02:59]}  d6 {[%clk 0:03:00]} 4. d4 {[%clk 0:02:59]}  Bg4 {[%clk 0:03:01]} 5. d5 {[%clk 0:02:59]}  c6 {[%clk 0:03:00]} 6. h3 {[%clk 0:02:59]}  Bxf3 {[%clk 0:03:00]} 7. Qxf3 {[%clk 0:03:00]}  Nf6 {[%clk 0:03:00]} 8. Be2 {[%clk 0:03:00]}  O-O {[%clk 0:03:00]} 9. O-O {[%clk 0:03:00]}  Nbd7 {[%clk 0:02:58]} 10. dxc6 {[%clk 0:02:57]}  bxc6 {[%clk 0:02:58]} 11. Nc3 {[%clk 0:02:57]}  Qa5 {[%clk 0:02:44]} 12. Bd2 {[%clk 0:02:57]}  Rfb8 {[%clk 0:02:40]} 13. b3 {[%clk 0:02:56]}  Qc7 {[%clk 0:02:39]} 14. Rac1 {[%clk 0:02:55]}  a5 {[%clk 0:02:40]} 15. Rfd1 {[%clk 0:02:55]}  Nc5 {[%clk 0:02:38]} 16. Be3 {[%clk 0:02:42]}  Nfd7 {[%clk 0:02:39]} 17. Bg5 {[%clk 0:02:41]}  a4 {[%clk 0:02:33]} 18. bxa4 {[%clk 0:02:11]}  Nxa4 {[%clk 0:02:32]} 19. Nxa4 {[%clk 0:01:59]}  Rxa4 {[%clk 0:02:32]} 20. Rc2 {[%clk 0:01:59]}  Nc5 {[%clk 0:02:23]} 21. Qe3 {[%clk 0:01:56]}  Rba8 {[%clk 0:02:13]} 22. Rdd2 {[%clk 0:01:55]}  Ne6 {[%clk 0:02:09]} 23. Bg4 {[%clk 0:01:41]}  Nxg5 {[%clk 0:02:03]} 24. Qxg5 {[%clk 0:01:42]}  R8a5 {[%clk 0:01:56]} 25. Qe3 {[%clk 0:01:41]}  c5 {[%clk 0:01:52]} 26. g3 {[%clk 0:01:41]}  Bd4 {[%clk 0:01:48]} 27. Qe2 {[%clk 0:01:42]}  Ra3 {[%clk 0:01:40]} 28. Kg2 {[%clk 0:01:42]}  h5 {[%clk 0:01:40]} 29. Bf3 {[%clk 0:01:42]}  Qa7 {[%clk 0:01:20]} 30. h4 {[%clk 0:01:42]}  R5a4 {[%clk 0:01:20]} 31. Kh2 {[%clk 0:01:36]}  Kg7 {[%clk 0:01:19]} 32. Bg2 {[%clk 0:01:36]}  Qa6 {[%clk 0:01:16]} 33. Bh3 {[%clk 0:01:35]}  Rb4 {[%clk 0:01:09]} 34. Bd7 {[%clk 0:01:34]}  Qb7 {[%clk 0:01:01]} 35. Bh3 {[%clk 0:01:30]}  Rb1 {[%clk 0:00:56]} 36. Bg2 {[%clk 0:01:30]}  Qd7 {[%clk 0:00:51]} 37. f4 {[%clk 0:01:18]}  Bg1+ {[%clk 0:00:46]} 38. Kh1 {[%clk 0:01:16]}  Rxg3 {[%clk 0:00:39]} 39. Rd1 {[%clk 0:01:15]}  Rxd1 {[%clk 0:00:38]} 40. Qxd1 {[%clk 0:01:16]}  Be3 {[%clk 0:00:38]} 41. f5 {[%clk 0:01:13]}  Rg4 {[%clk 0:00:31]} 42. Qe1 {[%clk 0:01:12]}  Bd4 {[%clk 0:00:26]} 43. Bf3 {[%clk 0:01:08]}  Rf4 {[%clk 0:00:24]} 44. Kg2 {[%clk 0:00:43]}  Bf6 {[%clk 0:00:19]} 45. Qg3 {[%clk 0:00:36]}  Rxh4 {[%clk 0:00:14]} 46. Rd2 {[%clk 0:00:20]}  Qa4 {[%clk 0:00:13]} 47. fxg6 {[%clk 0:00:10]}  fxg6 {[%clk 0:00:14]} 48. e5 {[%clk 0:00:11]}  dxe5 {[%clk 0:00:14]} 49. Bd5 {[%clk 0:00:09]}  Rg4 {[%clk 0:00:14]} 0-1

[Event "November 21 Late 2023"]
[Site "https://www.chess.com"]
[Date "2023.11.21"]
[Round "10"]
[White "Nazari, Arad"]
[Black "Chigaev, Maksim"]
[Result "0-1"]
[Board "14"]
[TimeControl "180+1"]
[WhiteFideId "12577324"]
[BlackFideId "4108116"]
[WhiteElo "2100"]
[BlackElo "2561"]
[WhiteTeam "IRI"]
[BlackTeam "ESP"]
[WhiteClock "0:00:00"]
[BlackClock "0:00:15"]

1. e4 {[%clk 0:03:00]}  c5 {[%clk 0:02:59]} 2. Nf3 {[%clk 0:03:01]}  d6 {[%clk 0:03:00]} 3. Bb5+ {[%clk 0:03:01]}  Bd7 {[%clk 0:02:59]} 4. Bxd7+ {[%clk 0:03:01]}  Qxd7 {[%clk 0:03:00]} 5. O-O {[%clk 0:03:01]}  Nc6 {[%clk 0:03:00]} 6. c3 {[%clk 0:03:01]}  d5 {[%clk 0:03:00]} 7. exd5 {[%clk 0:03:01]}  Qxd5 {[%clk 0:03:01]} 8. d4 {[%clk 0:03:02]}  e6 {[%clk 0:03:01]} 9. Be3 {[%clk 0:03:02]}  cxd4 {[%clk 0:03:00]} 10. Nxd4 {[%clk 0:03:01]}  Nf6 {[%clk 0:03:00]} 11. Nxc6 {[%clk 0:03:00]}  Qxc6 {[%clk 0:03:00]} 12. Nd2 {[%clk 0:02:57]}  Be7 {[%clk 0:02:55]} 13. Qf3 {[%clk 0:02:57]}  Qxf3 {[%clk 0:02:54]} 14. Nxf3 {[%clk 0:02:58]}  Nd5 {[%clk 0:02:54]} 15. Bd4 {[%clk 0:02:56]}  f6 {[%clk 0:02:45]} 16. Rad1 {[%clk 0:02:49]}  b5 {[%clk 0:02:40]} 17. Rfe1 {[%clk 0:02:49]}  Kf7 {[%clk 0:02:38]} 18. a4 {[%clk 0:02:25]}  bxa4 {[%clk 0:02:25]} 19. Ra1 {[%clk 0:02:14]}  a3 {[%clk 0:02:25]} 20. bxa3 {[%clk 0:01:40]}  Rhc8 {[%clk 0:02:23]} 21. Reb1 {[%clk 0:01:13]}  e5 {[%clk 0:02:16]} 22. c4 {[%clk 0:01:12]}  Nf4 {[%clk 0:01:48]} 23. Be3 {[%clk 0:01:12]}  Rxc4 {[%clk 0:01:49]} 24. Rb7 {[%clk 0:01:11]}  Nd5 {[%clk 0:01:31]} 25. Rd1 {[%clk 0:00:32]}  Rc7 {[%clk 0:01:17]} 26. Rxc7 {[%clk 0:00:21]}  Nxc7 {[%clk 0:01:18]} 27. Rd7 {[%clk 0:00:21]}  Rc8 {[%clk 0:01:17]} 28. Bxa7 {[%clk 0:00:18]}  Ke6 {[%clk 0:01:04]} 29. Rd1 {[%clk 0:00:14]}  Nb5 {[%clk 0:01:04]} 30. Be3 {[%clk 0:00:15]}  Nxa3 {[%clk 0:01:05]} 31. h3 {[%clk 0:00:15]}  Nc4 {[%clk 0:01:00]} 32. Bc1 {[%clk 0:00:14]}  h5 {[%clk 0:00:58]} 33. g3 {[%clk 0:00:11]}  Nd6 {[%clk 0:00:52]} 34. Kg2 {[%clk 0:00:10]}  Rc2 {[%clk 0:00:52]} 35. Be3 {[%clk 0:00:10]}  Nf5 {[%clk 0:00:51]} 36. Bb6 {[%clk 0:00:07]}  Rb2 {[%clk 0:00:50]} 37. Ba7 {[%clk 0:00:07]}  g5 {[%clk 0:00:47]} 38. g4 {[%clk 0:00:07]}  hxg4 {[%clk 0:00:45]} 39. hxg4 {[%clk 0:00:08]}  Nh6 {[%clk 0:00:44]} 40. Nh2 {[%clk 0:00:08]}  Ra2 {[%clk 0:00:43]} 41. Bb6 {[%clk 0:00:07]}  Ra4 {[%clk 0:00:36]} 42. f3 {[%clk 0:00:06]}  Ra2+ {[%clk 0:00:36]} 43. Kh1 {[%clk 0:00:04]}  Nf7 {[%clk 0:00:28]} 44. Be3 {[%clk 0:00:04]}  Ra3 {[%clk 0:00:25]} 45. Bf2 {[%clk 0:00:04]}  Nd6 {[%clk 0:00:20]} 46. Kg2 {[%clk 0:00:04]}  Ra2 {[%clk 0:00:19]} 47. Kf1 {[%clk 0:00:04]}  Nc4 {[%clk 0:00:19]} 48. Rd3 {[%clk 0:00:02]}  Bb4 {[%clk 0:00:18]} 49. Kg1 {[%clk 0:00:01]}  Bd2 {[%clk 0:00:18]} 50. Rb3 {[%clk 0:00:01]}  Bf4 {[%clk 0:00:16]} 51. Nf1 {[%clk 0:00:02]}  Ra1 {[%clk 0:00:16]} 52. Kg2 {[%clk 0:00:01]}  Rxf1 {[%clk 0:00:15]} 53. Rb4 {[%clk 0:00:00]}  Rc1 {[%clk 0:00:15]} 0-1

[Event "November 21 Late 2023"]
[Site "https://www.chess.com"]
[Date "2023.11.21"]
[Round "10"]
[White "Jakubowski, Krzysztof"]
[Black "Taher, Yoseph Theolifus"]
[Result "0-1"]
[Board "15"]
[TimeControl "180+1"]
[WhiteFideId "1112848"]
[BlackFideId "7105347"]
[WhiteElo "2369"]
[BlackElo "2352"]
[WhiteTeam "POL"]
[BlackTeam "INA"]
[WhiteClock "0:00:02"]
[BlackClock "0:00:52"]

1. e4 {[%clk 0:03:00]}  c5 {[%clk 0:02:59]} 2. Nf3 {[%clk 0:02:54]}  g6 {[%clk 0:02:59]} 3. h4 {[%clk 0:02:48]}  h5 {[%clk 0:02:58]} 4. c3 {[%clk 0:02:47]}  Nf6 {[%clk 0:02:57]} 5. e5 {[%clk 0:02:45]}  Nd5 {[%clk 0:02:57]} 6. d4 {[%clk 0:02:42]}  cxd4 {[%clk 0:02:58]} 7. cxd4 {[%clk 0:02:35]}  Bg7 {[%clk 0:02:58]} 8. Nc3 {[%clk 0:02:33]}  Nxc3 {[%clk 0:02:58]} 9. bxc3 {[%clk 0:02:34]}  d6 {[%clk 0:02:59]} 10. Bf4 {[%clk 0:02:29]}  dxe5 {[%clk 0:02:58]} 11. Bxe5 {[%clk 0:02:28]}  O-O {[%clk 0:02:57]} 12. Qd2 {[%clk 0:02:23]}  Nc6 {[%clk 0:02:56]} 13. Bxg7 {[%clk 0:02:22]}  Kxg7 {[%clk 0:02:57]} 14. Bb5 {[%clk 0:02:19]}  Qd5 {[%clk 0:02:52]} 15. Bxc6 {[%clk 0:02:17]}  bxc6 {[%clk 0:02:50]} 16. O-O {[%clk 0:02:16]}  Bg4 {[%clk 0:02:45]} 17. Ne5 {[%clk 0:02:14]}  c5 {[%clk 0:02:45]} 18. Qf4 {[%clk 0:02:09]}  Bf5 {[%clk 0:02:38]} 19. Rfd1 {[%clk 0:01:56]}  cxd4 {[%clk 0:02:35]} 20. Rxd4 {[%clk 0:01:49]}  Qc5 {[%clk 0:02:35]} 21. Rc4 {[%clk 0:01:47]}  Qd6 {[%clk 0:02:28]} 22. Rd4 {[%clk 0:01:40]}  Qc5 {[%clk 0:02:26]} 23. Rc4 {[%clk 0:01:40]}  Qb5 {[%clk 0:02:22]} 24. Rb4 {[%clk 0:01:37]}  Qe2 {[%clk 0:02:20]} 25. Nf3 {[%clk 0:01:33]}  Qe6 {[%clk 0:01:47]} 26. Nd4 {[%clk 0:01:29]}  Qf6 {[%clk 0:01:46]} 27. Nxf5+ {[%clk 0:01:27]}  Qxf5 {[%clk 0:01:45]} 28. Qxf5 {[%clk 0:01:27]}  gxf5 {[%clk 0:01:46]} 29. Ra4 {[%clk 0:01:14]}  Rfc8 {[%clk 0:01:45]} 30. c4 {[%clk 0:01:14]}  Rc7 {[%clk 0:01:43]} 31. Re1 {[%clk 0:01:11]}  Kf6 {[%clk 0:01:42]} 32. Re3 {[%clk 0:01:10]}  Rac8 {[%clk 0:01:42]} 33. Rc3 {[%clk 0:01:05]}  f4 {[%clk 0:01:42]} 34. Kf1 {[%clk 0:01:05]}  e5 {[%clk 0:01:40]} 35. Ke2 {[%clk 0:01:02]}  Kf5 {[%clk 0:01:34]} 36. Kd3 {[%clk 0:00:50]}  Rg8 {[%clk 0:01:30]} 37. c5 {[%clk 0:00:42]}  Rxg2 {[%clk 0:01:29]} 38. f3 {[%clk 0:00:43]}  Rh2 {[%clk 0:01:13]} 39. c6 {[%clk 0:00:39]}  Rf2 {[%clk 0:01:07]} 40. Rc5 {[%clk 0:00:32]}  Rxf3+ {[%clk 0:01:05]} 41. Kc4 {[%clk 0:00:31]}  Rf1 {[%clk 0:01:05]} 42. Kb5 {[%clk 0:00:28]}  Rb1+ {[%clk 0:01:03]} 43. Kc4 {[%clk 0:00:21]}  f3 {[%clk 0:00:56]} 44. Ra3 {[%clk 0:00:21]}  Kf4 {[%clk 0:00:54]} 45. Rd3 {[%clk 0:00:02]}  f2 {[%clk 0:00:52]} 0-1